bitfinex-derivatives/quotes_BTCF0:USTF0_20250926
["timestamp","ask_amount","ask_price","bid_price","bid_amount"]
[1758883774478,0.012,108850.0,108840.0,2.07091383]
[1758883774872,0.012,108850.0,108840.0,2.13694846]
[1758883776081,0.012,108850.0,108840.0,2.13650846]
[1758883779376,0.012,108850.0,108840.0,1.28726846]
[1758883779582,0.012,108850.0,108840.0,1.73622846]
[1758883779784,0.012,108850.0,108840.0,1.73606846]
[1758883780782,0.012,108850.0,108840.0,1.73602846]
[1758883781387,0.012,108850.0,108840.0,1.66999383]
[1758883782886,0.012,108850.0,108840.0,1.73603509]
[1758883783297,0.012,108850.0,108840.0,1.71745538]
[1758883784075,0.012,108850.0,108840.0,1.71725538]
[1758883787389,0.012,108850.0,108840.0,0.86869538]
[1758883787591,0.012,108850.0,108840.0,1.71665538]
[1758883789491,0.012,108850.0,108840.0,1.65061412]
[1758883789888,0.012,108850.0,108840.0,1.71665538]
[1758883790887,0.012,108850.0,108840.0,1.71629538]
[1758883791694,0.012,108850.0,108840.0,2.01105412]
[1758883794290,0.012,108850.0,108840.0,2.36647488]
[1758883794491,0.012,108850.0,108840.0,2.45834864]
[1758883794993,0.012,108850.0,108840.0,2.10292788]
[1758883795494,0.012,108850.0,108840.0,2.45834864]
[1758883796093,0.012,108850.0,108840.0,2.10292788]
[1758883796594,0.012,108850.0,108840.0,2.94049101]
[1758883800097,0.012,108850.0,108840.0,3.03794681]
[1758883800897,0.012,108850.0,108840.0,2.95580444]
[1758883801886,0.012,108850.0,108840.0,3.03834507]
[1758883802093,0.012,108850.0,108840.0,2.19074507]
[1758883802294,0.012,108850.0,108840.0,3.03738507]
[1758883802897,0.012,108850.0,108840.0,4.42738507]
[1758883803097,0.88967569,108880.0,108870.0,0.0917877]
[1758883803301,0.88967569,108880.0,108870.0,1.29372846]
[1758883803501,0.88967569,108880.0,108870.0,0.44720846]
[1758883803697,0.88967569,108880.0,108870.0,1.20170076]
[1758883804290,0.88967569,108880.0,108870.0,1.20270076]
[1758883804996,0.88967569,108880.0,108870.0,1.20370076]
[1758883805200,0.88967569,108880.0,108870.0,0.35742076]
[1758883805402,0.88967569,108880.0,108870.0,1.20342076]
[1758883806303,0.89467569,108880.0,108870.0,1.20242076]
[1758883806706,0.89467569,108880.0,108870.0,1.20142076]
[1758883808104,0.89467569,108880.0,108870.0,0.35542076]
[1758883808708,0.89467569,108880.0,108870.0,0.44720856]
[1758883809202,0.89467569,108880.0,108870.0,0.49669873]
[1758883809403,0.53425493,108880.0,108870.0,0.49669873]
[1758883809706,0.89467569,108880.0,108870.0,0.35542076]
[1758883811007,0.89467569,108880.0,108870.0,0.44720846]
[1758883811722,0.53925493,108880.0,108870.0,0.44720846]
[1758883811914,0.89467569,108880.0,108870.0,0.44720846]
[1758883814222,0.44747523,108880.0,108870.0,0.44720846]
[1758883814515,0.53925453,108880.0,108870.0,0.0917877]
[1758883814914,0.44747523,108880.0,108870.0,0.61503503]
[1758883815109,0.44747523,108880.0,108870.0,0.56554262]
[1758883815919,0.43832083,108880.0,108870.0,0.56554262]
[1758883818116,0.53010013,108880.0,108870.0,0.56554262]
[1758883818917,0.43832083,108880.0,108870.0,0.56554262]
[1758883819122,0.43832083,108880.0,108870.0,0.63155661]
[1758883821623,0.07752083,108880.0,108870.0,0.63155661]
[1758883822319,0.07752083,108880.0,108870.0,0.63255661]
[1758883822624,0.07252083,108880.0,108870.0,0.63255661]
[1758883822925,1.2149836,108890.0,108880.0,0.0917793]
[1758883823224,1.2149836,108890.0,108880.0,0.61504059]
[1758883823420,1.3067545,108890.0,108880.0,0.56553422]
[1758883823815,1.2149836,108890.0,108880.0,0.56553422]
[1758883824022,1.2199836,108890.0,108880.0,0.56553422]
[1758883824322,0.005,108890.0,108880.0,0.63154821]
[1758883824521,0.005,108890.0,108880.0,2.35046313]
[1758883824823,0.005,108890.0,108880.0,1.87670821]
[1758883825019,0.005,108890.0,108880.0,1.81069422]
[1758883825219,0.005,108890.0,108880.0,1.87668165]
[1758883825423,0.005,108890.0,108880.0,2.17149422]
[1758883825725,0.43553918,108900.0,108890.0,0.0917709]
[1758883825930,0.43553918,108900.0,108890.0,0.56552582]
[1758883826126,0.43553918,108900.0,108890.0,0.63151788]
[1758883826327,0.43553918,108900.0,108890.0,0.65003748]
[1758883827228,0.07973918,108900.0,108890.0,1.01083748]
[1758883827829,0.005,108900.0,108890.0,1.01083748]
[1758883829225,0.4525543,108910.0,108900.0,0.0917625]
[1758883829428,0.16435065,108910.0,108900.0,1.41059742]
[1758883829625,0.07259635,108910.0,108900.0,1.41059742]
[1758883829825,1.297631,108920.0,108910.0,0.091754]
[1758883830025,0.452551,108920.0,108910.0,0.61493405]
[1758883830630,0.46187235,108920.0,108910.0,0.61493405]
[1758883832732,0.452551,108920.0,108910.0,0.61493405]
[1758883832932,0.3608,108920.0,108910.0,0.61493405]
[1758883833124,0.3658,108920.0,108910.0,0.61493405]
[1758883833633,0.44001894,108920.0,108910.0,0.61493405]
[1758883835036,0.53176454,108920.0,108910.0,0.61493405]
[1758883836337,0.17096454,108920.0,108910.0,0.61493405]
[1758883836734,1.00551946,108920.0,108910.0,0.04942513]
[1758883836939,1.40551946,108920.0,108910.0,0.04942513]
[1758883837631,0.93176454,108920.0,108910.0,0.03288065]
[1758883837830,2.25039946,108920.0,108910.0,0.03288065]
[1758883839538,1.85039946,108920.0,108910.0,0.03288065]
[1758883839737,1.37664454,108920.0,108910.0,0.03288065]
[1758883839941,1.85039946,108920.0,108910.0,0.03288065]
[1758883840327,1.37664454,108920.0,108910.0,0.12463445]
[1758883840531,1.85039946,108920.0,108910.0,0.12463445]
[1758883840732,1.37664454,108920.0,108910.0,0.12463445]
[1758883841846,1.85039946,108920.0,108910.0,0.03288065]
[1758883843737,1.37664454,108920.0,108910.0,0.03288065]
[1758883844237,1.85039946,108920.0,108910.0,0.03288065]
[1758883844941,1.85039946,108920.0,108910.0,0.12463445]
[1758883845142,1.37664454,108920.0,108910.0,0.12463445]
[1758883845337,1.85039946,108920.0,108910.0,0.12463445]
[1758883846041,1.37664454,108920.0,108910.0,0.12563445]
[1758883846242,1.37664454,108920.0,108910.0,0.17505958]
[1758883846543,1.37664454,108920.0,108910.0,0.17756575]
[1758883846742,1.37664454,108920.0,108910.0,0.19029315]
[1758883846942,1.37664454,108920.0,108910.0,0.66404807]
[1758883847143,1.37664454,108920.0,108910.0,0.63116742]
[1758883847443,1.37664454,108920.0,108910.0,0.63016742]
[1758883847644,0.53176454,108920.0,108910.0,0.63016742]
[1758883848544,0.17096434,108920.0,108910.0,0.63016742]
[1758883848943,0.17096434,108920.0,108910.0,0.63116742]
[1758883849145,0.17096434,108920.0,108910.0,0.63216742]
[1758883849444,0.17096434,108920.0,108910.0,0.1584125]
[1758883849647,0.17096434,108920.0,108910.0,0.63216742]
[1758883849946,0.17096434,108920.0,108910.0,0.63116742]
[1758883851047,0.17096434,108920.0,108910.0,0.1574125]
[1758883851248,0.53176434,108920.0,108910.0,0.63116742]
[1758883851750,0.53176434,108920.0,108910.0,0.63016742]
[1758883852143,0.53176434,108920.0,108910.0,0.58074229]
[1758883853751,0.17096434,108920.0,108910.0,0.58074229]
[1758883854238,0.07921894,108920.0,108910.0,0.58074229]
[1758883854439,0.17096434,108920.0,108910.0,0.58074229]
[1758883854744,0.17096434,108920.0,108910.0,0.64673435]
[1758883856255,0.005,108920.0,108910.0,1.89149435]
[1758883857248,0.005,108920.0,108910.0,1.9006232]
[1758883857951,0.005,108920.0,108910.0,2.2614232]
[1758883858537,0.005,108920.0,108910.0,2.35323791]
[1758883860846,0.005,108920.0,108910.0,2.28724585]
[1758883861049,0.005,108920.0,108910.0,2.278117]
[1758883861452,0.005,108920.0,108910.0,2.28723483]
[1758883861647,0.005,108920.0,108910.0,1.44247483]
[1758883861851,0.005,108920.0,108910.0,2.36061763]
[1758883864255,0.005,108920.0,108910.0,1.49137376]
[1758883864452,0.0967454,108920.0,108910.0,0.17293884]
[1758883864655,0.0967454,108920.0,108910.0,1.01761884]
[1758883864865,0.0967454,108920.0,108910.0,0.58074229]
[1758883865159,0.0967454,108920.0,108910.0,1.42542229]
[1758883865367,0.0967454,108920.0,108910.0,1.33366849]
[1758883865551,0.0967454,108920.0,108910.0,0.48898849]
[1758883865747,1.33130032,108920.0,108910.0,0.01523357]
[1758883865950,1.33130032,108920.0,108910.0,0.06470287]
[1758883866159,1.33130032,108920.0,108910.0,0.0482139]
[1758883866459,0.3658,108920.0,108910.0,0.63021159]
[1758883869552,0.4575454,108920.0,108910.0,0.63021159]
[1758883870451,0.4575454,108920.0,108910.0,0.15645667]
[1758883870858,0.4575454,108920.0,108910.0,0.10698737]
[1758883871246,0.93130032,108920.0,108910.0,0.01523357]
[1758883871447,1.33130032,108920.0,108910.0,0.0647027]
[1758883872054,0.8575454,108920.0,108910.0,0.1564563]
[1758883874963,0.4575454,108920.0,108910.0,0.63021122]
[1758883876363,0.4575454,108920.0,108910.0,0.58074209]
[1758883876560,0.4575454,108920.0,108910.0,0.4619946]
[1758883876766,0.4575454,108920.0,108910.0,0.10698717]
[1758883877168,0.4575454,108920.0,108910.0,0.4619946]
[1758883878063,0.3658,108920.0,108910.0,0.4619946]
[1758883878270,0.3658,108920.0,108910.0,0.52794607]
[1758883878668,0.3658,108920.0,108910.0,0.8829535]
[1758883879371,0.3658,108920.0,108910.0,1.2829535]
[1758883879971,0.005,108920.0,108910.0,1.6437535]
[1758883880370,0.005,108920.0,108910.0,1.73556821]
[1758883882182,0.005,108920.0,108910.0,1.74489053]
[1758883883375,0.0967452,108920.0,108910.0,1.74489053]
[1758883883575,0.005,108920.0,108910.0,1.74489053]
[1758883883980,0.005,108920.0,108910.0,1.76147969]
[1758883884374,0.005,108920.0,108910.0,1.83572012]
[1758883887085,0.3608,108940.0,108930.0,0.0917368]
[1758883887276,0.3608,108940.0,108930.0,1.71229354]
[1758883887480,0.46148229,108950.0,108940.0,0.0917284]
[1758883887677,0.46148229,108950.0,108940.0,0.8638892]
[1758883888680,0.46148229,108950.0,108940.0,0.86639537]
[1758883889080,0.53355308,108950.0,108940.0,0.86639537]
[1758883889282,0.53755308,108950.0,108940.0,0.86639537]
[1758883889984,0.53755308,108950.0,108940.0,0.06465211]
[1758883890186,0.53755308,108950.0,108940.0,0.86639537]
[1758883890385,0.89256051,108950.0,108940.0,0.51138794]
[1758883890580,0.53755308,108950.0,108940.0,0.51138794]
[1758883890986,0.90756051,108950.0,108940.0,0.41965954]
[1758883891186,0.90756051,108950.0,108940.0,0.51138794]
[1758883891580,0.55255308,108950.0,108940.0,0.51138794]
[1758883891886,0.90756051,108950.0,108940.0,0.51138794]
[1758883893287,0.55255308,108950.0,108940.0,0.51138794]
[1758883893796,0.55255308,108950.0,108940.0,0.86639537]
[1758883893984,0.55255308,108950.0,108940.0,0.51138794]
[1758883894894,0.55255308,108950.0,108940.0,0.15638051]
[1758883895084,0.55255308,108950.0,108940.0,0.41965954]
[1758883895287,0.55255308,108950.0,108940.0,0.51138794]
[1758883896591,0.55255308,108950.0,108940.0,0.86639537]
[1758883899395,0.54359629,108950.0,108940.0,0.86639537]
[1758883899795,0.18279629,108950.0,108940.0,0.86639537]
[1758883900297,0.18179629,108950.0,108940.0,0.86639537]
[1758883900695,0.16679629,108950.0,108940.0,0.86639537]
[1758883900892,0.016,108950.0,108940.0,0.86639537]
[1758883901099,0.014,108950.0,108940.0,0.86639537]
[1758883901299,0.001,108950.0,108940.0,0.89200543]
[1758883901601,0.008,108950.0,108940.0,0.89200543]
[1758883902004,0.008,108950.0,108940.0,1.22610355]
[1758883902301,0.008,108950.0,108940.0,1.64701286]
[1758883902597,0.008,108950.0,108940.0,2.09960229]
[1758883903393,0.008,108950.0,108940.0,3.48960229]
[1758883903896,0.008,108950.0,108940.0,3.42370041]
[1758883904292,0.008,108950.0,108940.0,3.48951772]
[1758883904705,0.008,108950.0,108940.0,2.42449543]
[1758883904905,0.008,108950.0,108940.0,3.48951772]
[1758883905107,0.008,108950.0,108940.0,3.42370041]
[1758883905503,0.3608,108980.0,108970.0,0.0917031]
[1758883905699,0.4524903,108990.0,108970.0,0.86380648]
[1758883905898,0.46161519,108990.0,108980.0,0.80170956]
[1758883906701,0.46161519,108990.0,108980.0,0.80421573]
[1758883906904,0.46161519,108990.0,108980.0,0.81694313]
[1758883907100,0.84062262,108990.0,108980.0,0.4619357]
[1758883907298,0.84062262,108990.0,108980.0,0.01523357]
[1758883907605,0.84062262,108990.0,108980.0,0.370241]
[1758883907606,0.84862262,108990.0,108980.0,0.370241]
[1758883908710,0.49361519,108990.0,108980.0,0.370241]
[1758883908902,0.49361519,108990.0,108980.0,0.81694333]
[1758883909211,0.49361139,108990.0,108980.0,0.81694333]
[1758883909504,0.89361139,108990.0,108980.0,0.81694333]
[1758883909700,0.96740866,108990.0,108980.0,0.81694333]
[1758883909904,0.96740866,108990.0,108980.0,0.4619359]
[1758883910303,1.32241609,108990.0,108980.0,0.4619359]
[1758883910501,0.96740866,108990.0,108980.0,0.4619359]
[1758883910706,1.32241609,108990.0,108980.0,0.4619359]
[1758883911309,1.32241609,108990.0,108980.0,0.01523357]
[1758883912706,0.0917033,108970.0,108960.0,0.40436855]
[1758883912903,1.16831073,108970.0,108960.0,0.35500743]
[1758883913109,0.8133033,108970.0,108960.0,0.35500743]
[1758883913308,0.8133033,108970.0,108960.0,0.71001486]
[1758883913811,0.8133033,108970.0,108960.0,0.35500743]
[1758883914008,0.8173033,108970.0,108960.0,0.71001486]
[1758883914205,0.8303033,108970.0,108960.0,0.71001486]
[1758883914602,0.017,108970.0,108960.0,1.57822764]
[1758883914808,0.017,108970.0,108960.0,1.93902764]
[1758883916105,0.017,108970.0,108960.0,2.03080022]
[1758883916609,0.017,108970.0,108960.0,0.96577793]
[1758883916809,0.017,108970.0,108960.0,2.03080022]
[1758883919113,0.017,108970.0,108960.0,1.67579279]
[1758883919504,0.1087031,108970.0,108960.0,0.96577793]
[1758883919706,0.1087031,108970.0,108960.0,1.67579279]
[1758883919905,0.017,108970.0,108960.0,1.67579279]
[1758883920810,0.1087031,108970.0,108960.0,0.0917116]
[1758883921014,0.1087031,108970.0,108960.0,1.70835336]
[1758883921201,0.1087031,108970.0,108960.0,0.85107336]
[1758883921509,0.1087031,108970.0,108960.0,0.75936176]
[1758883921708,0.1087031,108970.0,108960.0,0.85107336]
[1758883921902,0.017,108970.0,108960.0,0.85107336]
[1758883922409,0.013,108970.0,108960.0,0.85107336]
[1758883922606,0.016,108970.0,108960.0,0.85107336]
[1758883922807,0.1077031,108970.0,108960.0,0.0493469]
[1758883923011,1.22351053,108970.0,108960.0,0.40435433]
[1758883923204,0.8685031,108970.0,108960.0,0.35500743]
[1758883923404,2.06763053,108970.0,108950.0,0.40435433]
[1758883923610,0.80751893,108960.0,108950.0,0.40435433]
[1758883923809,0.4525115,108960.0,108950.0,0.40435433]
[1758883924116,0.80751893,108960.0,108950.0,0.40435433]
[1758883924513,0.09172,108950.0,108940.0,0.36624363]
[1758883924817,0.45252,108950.0,108940.0,0.36624363]
[1758883926515,0.52772385,108950.0,108940.0,0.36624363]
[1758883926912,0.52772385,108950.0,108940.0,0.37124363]
[1758883929317,0.52872385,108950.0,108940.0,0.37124363]
[1758883930016,0.52972385,108950.0,108940.0,0.36624363]
[1758883930917,0.88473128,108950.0,108940.0,0.36624363]
[1758883931820,0.52972385,108950.0,108940.0,0.36624363]
[1758883932919,0.88473128,108950.0,108940.0,0.36624363]
[1758883933619,0.52972385,108950.0,108940.0,1.21297916]
[1758883934418,0.43800385,108950.0,108940.0,1.30476859]
[1758883934607,0.07720385,108950.0,108940.0,1.65433239]
[1758883935013,0.001,108950.0,108940.0,1.74132301]
[1758883935214,0.4525089,108970.0,108960.0,0.0917113]
[1758883935413,0.4525089,108970.0,108960.0,0.80172616]
[1758883936018,0.0917089,108970.0,108960.0,0.80172616]
[1758883936324,1.309019,108980.0,108970.0,0.091703]
[1758883936523,0.3608,108980.0,108970.0,0.44671043]
[1758883936822,0.4524946,108980.0,108970.0,0.44671043]
[1758883937626,0.4524946,108980.0,108970.0,0.35500743]
[1758883938014,0.4524946,108980.0,108970.0,0.44671063]
[1758883938217,0.4584946,108980.0,108970.0,0.44671063]
[1758883938725,0.4584946,108980.0,108970.0,0.5645289]
[1758883939426,0.4584946,108980.0,108970.0,0.4728257]
[1758883940328,0.0917031,108970.0,108960.0,1.48654643]
[1758883940925,0.4585001,108980.0,108970.0,0.0917031]
[1758883941325,0.4585001,108980.0,108970.0,0.5645288]
[1758883941526,0.0917031,108970.0,108960.0,0.5645372]
[1758883941835,0.0937031,108970.0,108960.0,0.9476715]
[1758883942032,0.4545031,108970.0,108960.0,1.4204972]
[1758883943330,0.4525031,108970.0,108960.0,1.4204972]
[1758883944532,0.3608,108970.0,108960.0,1.46985117]
[1758883945130,0.4525031,108970.0,108960.0,1.46985117]
[1758883946228,0.4525002,108980.0,108970.0,0.0917031]
[1758883946429,0.4525002,108980.0,108970.0,0.61388277]
[1758883946623,0.53549477,108990.0,108980.0,0.0916947]
[1758883946822,0.53549477,108990.0,108980.0,0.61387437]
[1758883947227,0.52628857,108990.0,108980.0,0.61387437]
[1758883947723,0.43459727,108990.0,108980.0,0.61387437]
[1758883948426,0.43559727,108990.0,108980.0,0.61387437]
[1758883948731,0.53628051,108990.0,108980.0,0.61387437]
[1758883949628,0.44459421,108990.0,108980.0,0.61387437]
[1758883949832,0.45059421,108990.0,108980.0,0.61387437]
[1758883950231,0.44159727,108990.0,108980.0,0.61387437]
[1758883951937,0.53328357,108990.0,108980.0,0.14104867]
[1758883952126,0.53328357,108990.0,108980.0,0.04935397]
[1758883952328,0.53328357,108990.0,108980.0,0.14104887]
[1758883952527,0.53328357,108990.0,108980.0,0.61387457]
[1758883954939,0.50318051,108990.0,108980.0,0.61387457]
[1758883957936,0.50318051,108990.0,108980.0,0.14104887]
[1758883958441,0.50318051,108990.0,108980.0,0.61387457]
[1758883959744,0.50318051,108990.0,108980.0,0.14104887]
[1758883959936,0.50318051,108990.0,108980.0,0.61387457]
[1758883962131,0.50318051,108990.0,108980.0,0.52217967]
[1758883963941,0.50318051,108990.0,108980.0,0.61387457]
[1758883965940,0.50318051,108990.0,108980.0,0.52217967]
[1758883966141,0.50318051,108990.0,108980.0,0.4728257]
[1758883966738,0.0916947,108980.0,108970.0,1.02247203]
[1758883966943,0.4524947,108980.0,108970.0,1.02247203]
[1758883967248,0.4524947,108980.0,108970.0,1.49529773]
[1758883967446,0.4524947,108980.0,108970.0,1.02247203]
[1758883967748,0.4524947,108980.0,108970.0,1.4294829]
[1758883968855,0.3608,108980.0,108970.0,1.4294829]
[1758883969255,1.36054781,108990.0,108980.0,0.0916947]
[1758883969556,1.36054781,108990.0,108980.0,0.5645204]
[1758883970356,1.36154781,108990.0,108980.0,0.5645204]
[1758883970959,1.36754781,108990.0,108980.0,0.5645204]
[1758883974457,0.50318781,108990.0,108980.0,0.5645204]
[1758883975754,0.50318781,108990.0,108980.0,0.0916947]
[1758883975960,0.50318781,108990.0,108980.0,0.5645204]
[1758883979964,0.50218781,108990.0,108980.0,0.5645204]
[1758883980967,0.49618781,108990.0,108980.0,0.5645204]
[1758883984771,0.13538781,108990.0,108980.0,0.5645204]
[1758883986575,0.49618781,108990.0,108980.0,0.4728257]
[1758883987975,0.0916947,108980.0,108970.0,1.02269351]
[1758883988176,0.0916947,108980.0,108970.0,1.49551921]
[1758883989364,0.0916947,108980.0,108970.0,1.50151921]
[1758883989569,0.0916947,108980.0,108970.0,1.86331921]
[1758883990076,0.0916947,108980.0,108970.0,1.4364821]
[1758883990676,0.0916947,108980.0,108970.0,1.50250902]
[1758883991177,0.0916947,108980.0,108970.0,1.49730902]
[1758883991778,0.0916947,108980.0,108970.0,1.49630902]
[1758883991978,0.0916947,108980.0,108970.0,1.4312821]
[1758883992370,0.0916947,108980.0,108970.0,1.4252821]
[1758883992571,0.0916947,108980.0,108970.0,1.4302821]
[1758883992771,0.0916947,108980.0,108970.0,1.4312821]
[1758883993880,0.0916947,108980.0,108970.0,1.4437121]
[1758883996178,0.0916947,108980.0,108970.0,1.5097435]
[1758883996381,0.0916947,108980.0,108970.0,1.8695435]
[1758883997982,0.0916947,108980.0,108970.0,1.8635435]
[1758883998579,0.0916947,108980.0,108970.0,2.0998064]
[1758883998973,0.0916947,108980.0,108970.0,1.7390064]
[1758884003377,0.0916947,108980.0,108970.0,2.0998064]
[1758884003580,0.0916947,108980.0,108970.0,2.4998064]
[1758884004987,0.0916947,108980.0,108970.0,2.5008064]
[1758884005285,0.0916947,108980.0,108970.0,2.1460064]
[1758884006290,0.1283347,108980.0,108970.0,1.7977721]
[1758884006489,0.1283347,108980.0,108970.0,2.1523164]
[1758884007486,0.1283347,108980.0,108970.0,2.1463164]
[1758884007981,0.1283347,108980.0,108970.0,1.3002757]
[1758884008380,0.4891347,108980.0,108970.0,1.3003557]
[1758884009986,0.4891347,108980.0,108970.0,0.4436757]
[1758884010287,0.4891347,108980.0,108970.0,1.3003557]
[1758884011081,0.4891347,108980.0,108970.0,0.4436757]
[1758884011287,0.4891347,108980.0,108970.0,1.3000757]
[1758884011687,0.4891347,108980.0,108970.0,1.391779]
[1758884014091,0.4891347,108980.0,108970.0,1.3000757]
[1758884015989,0.4891347,108980.0,108970.0,0.4436757]
[1758884016189,0.4891347,108980.0,108970.0,1.2997157]
[1758884016490,0.4891347,108980.0,108970.0,1.3914188]
[1758884017087,0.4891347,108980.0,108970.0,1.7459631]
[1758884017483,0.4891347,108980.0,108970.0,1.3914188]
[1758884021987,0.4753047,108980.0,108970.0,1.3914188]
[1758884022189,0.4753047,108980.0,108970.0,1.7459631]
[1758884023493,0.1145047,108980.0,108970.0,2.0407317]
[1758884023694,0.1145047,108980.0,108970.0,2.10676797]
[1758884023994,0.1145047,108980.0,108970.0,2.12850139]
[1758884025096,0.1145047,108980.0,108970.0,2.13450139]
[1758884025286,0.51001071,108990.0,108970.0,2.13450139]
[1758884025287,0.53226071,108990.0,108980.0,0.1134047]
[1758884025486,0.53226071,108990.0,108980.0,0.88852957]
[1758884026293,0.53226071,108990.0,108980.0,0.90095957]
[1758884027194,0.53226071,108990.0,108980.0,0.88852957]
[1758884033698,0.53226071,108990.0,108980.0,0.90095957]
[1758884034904,0.49618071,108990.0,108980.0,0.90095957]
[1758884035304,0.13538071,108990.0,108980.0,0.90095957]
[1758884035700,0.15763071,108990.0,108980.0,0.90095957]
[1758884036205,0.17133071,108990.0,108980.0,0.88852957]
[1758884037195,0.17133071,108990.0,108980.0,1.74068957]
[1758884038601,0.17133071,108990.0,108980.0,1.6746533]
[1758884041396,0.13538071,108990.0,108980.0,1.6870833]
[1758884044200,0.13538071,108990.0,108980.0,2.0478833]
[1758884045497,0.04369421,108990.0,108980.0,2.4024276]
[1758884045802,0.0916863,108990.0,108980.0,2.11391957]
[1758884046205,0.49790592,109000.0,108990.0,0.1139663]
[1758884046401,0.49790592,109000.0,108990.0,0.4685106]
[1758884047306,0.57157173,109000.0,108990.0,0.4685106]
[1758884047504,0.57257173,109000.0,108990.0,0.4685106]
[1758884048401,0.57857173,109000.0,108990.0,0.3768243]
[1758884048599,0.57857173,109000.0,108990.0,1.2271043]
[1758884048799,0.57857173,109000.0,108990.0,1.3187906]
[1758884049000,0.57857173,109000.0,108990.0,0.9642463]
[1758884049203,0.57857173,109000.0,108990.0,1.3187906]
[1758884050305,0.57857173,109000.0,108990.0,0.4685106]
[1758884050608,0.57857173,109000.0,108990.0,1.3187506]
[1758884053301,0.57857173,109000.0,108990.0,0.9642063]
[1758884053506,0.57857173,109000.0,108990.0,1.3187506]
[1758884053901,0.57857173,109000.0,108990.0,1.3179106]
[1758884057609,0.57757173,109000.0,108990.0,1.3179106]
[1758884058403,0.57157173,109000.0,108990.0,1.3179106]
[1758884058610,0.57157173,109000.0,108990.0,1.43601226]
[1758884066817,0.57157173,109000.0,108990.0,1.34432596]
[1758884067017,0.57157173,109000.0,108990.0,1.43601276]
[1758884069519,0.57157173,109000.0,108990.0,1.50204903]
[1758884069718,0.57157173,109000.0,108990.0,1.43601276]
[1758884071615,0.57157173,109000.0,108990.0,1.50204903]
[1758884081726,0.57157173,109000.0,108990.0,1.41036223]
[1758884082933,0.57157173,109000.0,108990.0,1.50204903]
[1758884083334,0.57757173,109000.0,108990.0,1.50204903]
[1758884084134,0.57757173,109000.0,108990.0,0.93771627]
[1758884084429,1.05021769,109000.0,108990.0,0.06603627]
[1758884084628,0.1273168,108990.0,108980.0,0.55971223]
[1758884084935,0.4881168,108990.0,108980.0,0.93618627]
[1758884085433,0.4881168,108990.0,108980.0,0.87015]
[1758884085622,0.4881168,108990.0,108980.0,1.34279596]
[1758884085821,0.4881168,108990.0,108980.0,0.87015]
[1758884087128,0.4891168,108990.0,108980.0,0.87015]
[1758884087427,0.4951168,108990.0,108980.0,0.87015]
[1758884087630,0.4951168,108990.0,108980.0,0.02103]
[1758884087932,0.4951168,108990.0,108980.0,1.34279596]
[1758884088431,0.4951168,108990.0,108980.0,1.39227971]
[1758884088632,0.4951168,108990.0,108980.0,0.91963375]
[1758884088833,0.4951168,108990.0,108980.0,1.39227971]
[1758884092837,0.4951168,108990.0,108980.0,1.34279596]
[1758884097037,0.4951168,108990.0,108980.0,0.49367596]
[1758884097238,0.1273252,108980.0,108970.0,0.02103]
[1758884097431,0.4881252,108980.0,108970.0,0.04945544]
[1758884097934,1.3372852,108980.0,108970.0,0.04945544]
[1758884098143,2.20993116,108980.0,108970.0,0.04945544]
[1758884098335,1.7372852,108980.0,108970.0,0.04945544]
[1758884099434,1.7372852,108980.0,108970.0,0.07048544]
[1758884100532,1.7382852,108980.0,108970.0,0.07048544]
[1758884100735,1.7442852,108980.0,108970.0,0.16218914]
[1758884101341,1.7442852,108980.0,108970.0,0.6348351]
[1758884102136,1.7432852,108980.0,108970.0,0.6348351]
[1758884103041,1.7442852,108980.0,108970.0,0.6348351]
[1758884103442,1.7442852,108980.0,108970.0,0.07048544]
[1758884103742,1.7442852,108980.0,108970.0,0.5431314]
[1758884103943,1.7382852,108980.0,108970.0,0.5431314]
[1758884105145,1.7372852,108980.0,108970.0,0.5431314]
[1758884105545,1.7372852,108980.0,108970.0,0.04945544]
[1758884105546,2.20993116,108980.0,108970.0,0.04945544]
[1758884105842,2.20993116,108980.0,108950.0,0.53868223]
[1758884105843,0.1051921,108960.0,108950.0,0.53868223]
[1758884106041,0.4882321,108960.0,108950.0,1.02109596]
[1758884107649,0.4942321,108960.0,108950.0,1.02109596]
[1758884108440,0.566663,108960.0,108950.0,1.02109596]
[1758884109247,0.567663,108960.0,108950.0,1.02109596]
[1758884109546,0.206863,108960.0,108950.0,1.11281666]
[1758884111046,0.2160535,108960.0,108950.0,1.11281666]
[1758884112949,0.2160535,108960.0,108950.0,1.02109596]
[1758884113748,0.5768535,108960.0,108950.0,1.02109596]
[1758884116857,0.5768535,108960.0,108950.0,1.11281646]
[1758884117358,0.5768535,108960.0,108950.0,1.02109596]
[1758884117558,0.2160535,108960.0,108950.0,1.11281646]
[1758884117862,0.5768535,108960.0,108950.0,1.11281646]
[1758884118556,0.5758535,108960.0,108950.0,0.99488704]
[1758884118962,0.170143,108960.0,108950.0,2.11040358]
[1758884119256,0.170143,108960.0,108950.0,2.17643985]
[1758884119447,0.164143,108960.0,108950.0,2.18563137]
[1758884120857,0.164143,108960.0,108950.0,2.18243985]
[1758884121358,0.524943,108960.0,108950.0,1.82163985]
[1758884121559,0.524943,108960.0,108950.0,1.82263985]
[1758884122157,0.524943,108960.0,108950.0,1.82163985]
[1758884122357,0.524943,108960.0,108950.0,1.82263985]
[1758884122858,0.164143,108960.0,108950.0,1.82263985]
[1758884123058,0.164143,108960.0,108950.0,2.18343985]
[1758884124060,0.164143,108960.0,108950.0,2.19282286]
[1758884125058,0.164143,108960.0,108950.0,2.18343985]
[1758884126756,0.164143,108960.0,108950.0,2.19277629]
[1758884129760,0.164143,108960.0,108950.0,2.18343985]
[1758884129958,0.560663,108960.0,108950.0,1.29848281]
[1758884130162,0.560663,108960.0,108950.0,1.39020331]
[1758884131169,0.560663,108960.0,108950.0,1.38420331]
[1758884131365,0.560663,108960.0,108950.0,1.38320331]
[1758884132169,0.560663,108960.0,108950.0,0.53412331]
[1758884132370,0.560663,108960.0,108950.0,1.38316331]
[1758884136167,0.560663,108960.0,108950.0,0.08768627]
[1758884136368,1.67009608,108960.0,108950.0,0.06603627]
[1758884136669,0.1288805,108950.0,108940.0,1.29220281]
[1758884136861,0.84439704,108950.0,108940.0,0.99520654]
[1758884137067,0.84439704,108950.0,108940.0,0.64049]
[1758884137370,0.84439704,108950.0,108940.0,0.37720654]
[1758884139369,0.4896805,108950.0,108940.0,0.37720654]
[1758884139572,0.84439704,108950.0,108940.0,0.37720654]
[1758884139769,0.84439704,108950.0,108940.0,0.46893544]
[1758884139969,0.4896805,108950.0,108940.0,0.46893544]
[1758884140162,0.4896805,108950.0,108940.0,0.1142189]
[1758884140370,0.4896805,108950.0,108940.0,0.82365198]
[1758884144072,0.01277,108980.0,108970.0,0.0917023]
[1758884144277,0.39796,108990.0,108980.0,0.0916938]
[1758884144479,0.39796,108990.0,108980.0,0.80112688]
[1758884144674,0.39796,108990.0,108980.0,0.44641034]
[1758884145279,0.39796,108990.0,108980.0,1.65004688]